bitfinex/quotes_SOLUSD_20250421
["timestamp","ask_amount","ask_price","bid_price","bid_amount"]
[1745266704673,28.8410747,136.46,136.43,12.35559787]
[1745266704961,28.8410747,136.46,136.42,12.35559787]
[1745266705461,28.8410747,136.46,136.42,19.68579824]
[1745266705868,28.8410747,136.46,136.42,19.68587442]
[1745266706250,28.8410747,136.46,136.42,12.35559787]
[1745266707162,28.8410747,136.46,136.42,19.68588884]
[1745266707465,28.8410747,136.46,136.43,12.35559787]
[1745266707655,20.0,136.46,136.44,12.35559787]
[1745266707864,15.323,136.48,136.45,12.35559787]
[1745266708544,22.65015344,136.48,136.42,7.33029097]
[1745266708738,38.64964886,136.47,136.42,7.33029097]
[1745266708939,58.33338693,136.47,136.43,26.0]
[1745266709636,45.97778906,136.47,136.43,38.35559787]
[1745266709836,58.33338693,136.47,136.43,26.0]
[1745266710240,58.33338693,136.47,136.43,38.35559787]
[1745266710643,20.0,136.45,136.43,26.0]
[1745266711274,27.32886341,136.45,136.41,12.35559787]
[1745266711868,18.64964886,136.44,136.4,38.38559787]
[1745266712065,100.44964886,136.44,136.4,38.38559787]
[1745266712239,20.0,136.43,136.4,38.38559787]
[1745266712553,20.0,136.43,136.4,26.03]
[1745266712757,20.0,136.43,136.4,38.38559787]
[1745266713352,27.33017577,136.43,136.4,38.38559787]
[1745266714383,107.77912028,136.44,136.41,38.35559787]
[1745266715654,81.8,136.44,136.42,12.35559787]
[1745266715852,81.8,136.44,136.43,12.35559787]
[1745266716150,7.32925158,136.44,136.43,12.35559787]
[1745266717373,7.32925158,136.44,136.42,12.35559787]
[1745266719261,7.32925158,136.44,136.4,26.03]
[1745266719460,81.8,136.43,136.42,12.35559787]
[1745266719664,81.8,136.43,136.41,38.35559787]
[1745266719976,81.8,136.43,136.41,26.0]
[1745266720145,81.8,136.42,136.4,0.03]
[1745266720549,81.8,136.42,136.4,12.38559787]
[1745266721163,89.13054722,136.42,136.41,12.35559787]
[1745266723681,7.33054722,136.42,136.41,12.35559787]
[1745266724282,7.33054722,136.42,136.4,0.03]
[1745266724461,27.32997842,136.43,136.4,12.38559787]
[1745266727386,27.32997842,136.43,136.4,0.03]
[1745266728771,27.32997842,136.43,136.4,12.38559787]
[1745266729382,81.8,136.41,136.4,12.38559787]
[1745266729571,27.32997842,136.43,136.4,12.38559787]
[1745266730669,27.32997842,136.43,136.4,0.03]
[1745266734580,27.32997842,136.43,136.4,12.38559787]
[1745266735090,27.32997842,136.43,136.4,0.03]
[1745266737287,18.64964886,136.42,136.4,0.03]
[1745266737486,32.35559787,136.41,136.4,0.03]
[1745266738584,39.68643871,136.41,136.4,0.03]
[1745266739464,7.33245343,136.38,136.37,0.063]
[1745266739668,25.98210229,136.38,136.37,0.063]
[1745266740583,38.33770016,136.38,136.37,0.063]
[1745266740888,25.98210229,136.38,136.37,0.063]
[1745266741982,38.47986173,136.38,136.37,0.063]
[1745266744482,26.12426386,136.38,136.37,0.063]
[1745266744783,38.47986173,136.38,136.37,0.063]
[1745266747073,120.38664886,136.36,136.35,0.03]
[1745266750293,7.33313474,136.37,136.35,0.03]
[1745266750294,20.0,136.38,136.35,12.38559787]
[1745266750492,15.24,136.39,136.36,12.35559787]
[1745266751791,15.24,136.39,136.36,19.68910439]
[1745266753102,15.24,136.39,136.37,12.35559787]
[1745266754996,81.8,136.38,136.37,12.35559787]
[1745266755602,81.8,136.38,136.37,19.68858899]
[1745266756703,81.8,136.38,136.37,45.68858899]
[1745266760291,81.8,136.38,136.37,19.68858899]
[1745266761706,81.8,136.43,136.38,26.0]
[1745266762008,81.8,136.42,136.4,12.35559787]
[1745266762396,81.8,136.42,136.38,38.35559787]
[1745266762594,81.8,136.42,136.4,12.35559787]
[1745266763806,18.64964886,136.41,136.39,26.0]
[1745266765114,81.8,136.43,136.42,26.0]
[1745266765408,81.8,136.43,136.42,38.35559787]
[1745266767199,81.8,136.43,136.42,45.68590134]
[1745266780138,81.8,136.43,136.42,19.68590134]
[1745266780336,81.8,136.43,136.42,7.33030347]
[1745266780640,81.8,136.43,136.42,45.68590134]
[1745266796568,81.8,136.43,136.42,19.68590134]
[1745266800450,0.063,136.46,136.45,26.0]
[1745266800651,0.063,136.46,136.45,38.35559787]
[1745266802566,0.063,136.46,136.45,45.68428969]
[1745266809482,0.063,136.46,136.45,38.35559787]
[1745266809684,0.063,136.46,136.45,45.68428969]
[1745266814695,0.063,136.46,136.45,38.35559787]
[1745266814866,0.063,136.46,136.45,26.0]
[1745266815666,21.5896,136.45,136.38,6.7576108]
[1745266815861,21.5896,136.45,136.41,12.35559787]
[1745266816062,20.0,136.43,136.4,12.35559787]
[1745266816286,18.64964886,136.42,136.38,7.3621887]
[1745266816497,6.353,136.41,136.38,26.03]
[1745266817374,6.353,136.41,136.38,38.38559787]
[1745266817910,6.353,136.41,136.38,12.38559787]
[1745266818100,6.353,136.41,136.38,38.38559787]
[1745266819417,6.353,136.41,136.39,12.35559787]
[1745266819625,20.0,136.43,136.4,12.35559787]
[1745266819923,20.0,136.43,136.41,38.35559787]
[1745266820127,81.8,136.42,136.41,38.35559787]
[1745266821598,81.8,136.42,136.41,45.68643871]
[1745266823414,6.353,136.44,136.41,45.68643871]
[1745266825412,6.353,136.44,136.42,12.35559787]
[1745266825591,6.353,136.44,136.43,12.35559787]
[1745266826408,6.353,136.44,136.42,19.68540886]
[1745266827691,81.8,136.43,136.42,7.32981099]
[1745266827895,81.8,136.43,136.42,19.68540886]
[1745266835816,81.8,136.43,136.42,45.68540886]
[1745266837421,81.8,136.43,136.42,12.35559787]
[1745266837795,81.8,136.43,136.42,38.35559787]
[1745266837996,1.5662,136.44,136.42,26.0]
[1745266838297,81.8,136.43,136.42,26.0]
[1745266838619,7.6896,136.44,136.42,26.0]
[1745266838815,7.6896,136.44,136.42,38.35559787]
[1745266844428,7.6896,136.44,136.42,45.68582654]
[1745266847103,7.6896,136.44,136.43,12.35559787]
[1745266854128,7.6896,136.44,136.42,38.35559787]
[1745266854338,15.01884264,136.44,136.42,26.0]
[1745266855546,81.8,136.43,136.42,26.0]
[1745266856430,81.8,136.43,136.42,38.35559787]
[1745266859535,81.8,136.43,136.42,26.0]
[1745266861443,7.6896,136.44,136.42,26.0]
[1745266863147,15.01884294,136.44,136.42,26.0]
[1745266863321,18.64964886,136.43,136.42,26.0]
[1745266863526,20.0,136.42,136.38,12.38559787]
[1745266863736,81.8,136.41,136.38,12.38559787]
[1745266863939,81.8,136.41,136.4,26.0]
[1745266864532,18.64964886,136.41,136.4,26.0]
[1745266864849,27.6896,136.44,136.41,26.0]
[1745266865148,35.243,136.46,136.43,12.35559787]
[1745266865338,35.243,136.46,136.44,12.35559787]
[1745266865846,35.243,136.46,136.45,12.35559787]
[1745266866051,20.063,136.46,136.45,12.35559787]
[1745266867827,20.063,136.46,136.45,19.68428969]
[1745266868224,20.063,136.46,136.45,12.35559787]
[1745266868452,20.063,136.46,136.45,19.68428969]
[1745266872750,0.063,136.46,136.45,19.68428969]
[1745266873748,0.063,136.46,136.45,45.68428969]
[1745266882171,0.063,136.46,136.45,19.68428969]
[1745266891769,0.063,136.46,136.45,12.35559787]
[1745266893166,0.063,136.46,136.39,6.7276108]
[1745266893366,20.063,136.46,136.42,12.35559787]
[1745266893584,18.64964886,136.45,136.42,26.0]
[1745266893772,18.64964886,136.45,136.42,38.35559787]
[1745266893972,18.64964886,136.45,136.42,26.0]
[1745266894794,25.97869138,136.45,136.42,26.0]
[1745266895484,25.97869138,136.45,136.41,12.35559787]
[1745266895687,18.64964886,136.43,136.38,0.03]
[1745266895875,18.64964886,136.43,136.42,26.0]
[1745266896863,25.97941504,136.43,136.42,26.0]
[1745266897668,20.0,136.42,136.4,12.35559787]
[1745266899494,27.33046725,136.42,136.4,12.35559787]
[1745266900791,20.0,136.42,136.4,12.35559787]
[1745266901291,20.0,136.42,136.41,38.35559787]
[1745266905989,27.33030347,136.42,136.41,26.0]
[1745266907696,18.64964886,136.43,136.42,26.0]
[1745266908689,25.97941504,136.43,136.42,26.0]
[1745266909899,27.57311504,136.43,136.42,26.0]
[1745266919102,7.32951384,136.44,136.42,26.0]
[1745266919612,31.00524673,136.43,136.38,0.03]
[1745266919797,31.00524673,136.41,136.38,0.03]
[1745266919987,7.33137829,136.4,136.38,0.03]
[1745266920191,81.8,136.39,136.38,26.03]
[1745266920696,18.64964886,136.39,136.38,26.03]
[1745266922014,25.98156468,136.39,136.38,26.03]
[1745266922692,58.47932412,136.39,136.38,0.03]
[1745266924413,45.98156468,136.39,136.38,0.03]
[1745266925893,45.98156468,136.39,136.37,26.0]
[1745266925894,100.41964886,136.38,136.37,26.0]
[1745266927830,107.75210229,136.38,136.37,26.0]
[1745266929918,81.77,136.38,136.37,26.0]
[1745266931719,81.77,136.38,136.36,19.71911568]
[1745266931928,81.77,136.37,136.36,0.03]
[1745266932104,18.64964886,136.39,136.38,26.0]
[1745266933023,25.98171566,136.39,136.36,0.03]
[1745266933226,25.98171566,136.39,136.38,26.0]
[1745266934026,18.64964886,136.39,136.38,26.0]
[1745266939150,15.14,136.4,136.39,26.0]
[1745266939540,40.08789787,136.45,136.39,38.35559787]
[1745266939734,18.64964886,136.43,136.4,12.35559787]
[1745266939939,15.14,136.44,136.4,12.35559787]
[1745266940251,15.14,136.44,136.41,12.35559787]
[1745266940459,15.14,136.44,136.42,12.35559787]
[1745266941326,15.14,136.44,136.42,19.68583103]
[1745266941832,18.64964886,136.45,136.44,26.0]
[1745266942444,0.063,136.46,136.45,26.0]
[1745266942646,0.063,136.46,136.45,12.35559787]
[1745266942850,0.063,136.46,136.45,38.35559787]
[1745266943431,0.063,136.46,136.45,45.68428969]
[1745266946373,0.063,136.46,136.45,19.68428969]
[1745266949851,81.8,136.47,136.45,19.68428969]
[1745266950057,81.8,136.47,136.46,12.35559787]
[1745266950247,0.063,136.48,136.46,12.35559787]
[1745266950446,0.063,136.48,136.47,12.35559787]
[1745266951864,0.063,136.48,136.47,19.68321566]
[1745266972588,81.8,136.47,136.41,7.33084084]
[1745266972893,0.063,136.48,136.45,26.0]
[1745266972894,81.8,136.46,136.45,26.0]
[1745266973099,18.64964886,136.47,136.43,12.35559787]
[1745266973267,81.8,136.45,136.43,12.35559787]
[1745266973891,81.8,136.45,136.44,26.0]
[1745266975600,81.8,136.45,136.44,38.35559787]
[1745266978683,26.03972975,136.48,136.44,38.35559787]
[1745266978997,26.03972975,136.48,136.44,26.0]
[1745266979166,26.03972975,136.48,136.44,38.35559787]
[1745266980689,0.063,136.48,136.46,12.35559787]
[1745266980897,0.063,136.48,136.46,38.35559787]
[1745266982993,0.063,136.48,136.46,26.0]
[1745266983197,18.71264886,136.48,136.46,26.0]
[1745266983393,18.64964886,136.46,136.45,26.0]
[1745266983696,46.10524673,136.46,136.44,26.0]
[1745266983897,6.2534,136.45,136.44,26.0]
[1745266984072,100.44964886,136.44,136.4,0.03]
[1745266984273,1.5907,136.41,136.4,0.03]
[1745266984902,1.5907,136.41,136.4,26.03]
[1745266985406,8.92154084,136.41,136.4,26.03]
[1745266992192,7.32996347,136.43,136.4,38.38559787]
[1745266992405,7.32996347,136.43,136.42,12.35559787]
[1745266993093,7.32937497,136.44,136.42,12.35559787]
[1745266994215,18.64964886,136.43,136.4,0.03]
[1745266994391,18.64964886,136.43,136.42,26.0]
[1745266996008,25.97941504,136.43,136.42,26.0]
[1745266998489,25.97941504,136.43,136.4,26.03]
[1745266998998,25.97941504,136.43,136.42,26.0]
[1745266999303,38.33501291,136.43,136.42,26.0]
[1745266999515,38.33501291,136.43,136.4,0.03]
[1745266999689,12.35559787,136.42,136.4,26.03]
[1745267000510,7.33084084,136.41,136.4,26.03]
[1745267000819,25.9804897,136.41,136.4,26.03]
[1745267001001,25.9804897,136.41,136.4,0.03]
[1745267001205,25.9804897,136.41,136.4,26.03]
[1745267001413,25.9804897,136.41,136.4,0.03]
[1745267002001,7.33084084,136.41,136.4,0.03]
[1745267003716,22.45055378,136.42,136.4,0.03]
[1745267005211,107.7804897,136.41,136.4,0.03]
[1745267007119,120.13608757,136.41,136.4,0.03]
[1745267008613,107.7804897,136.41,136.4,0.03]
[1745267009118,120.13608757,136.41,136.4,0.03]
[1745267010219,107.7804897,136.41,136.4,0.03]
[1745267011117,25.9804897,136.41,136.4,0.03]
[1745267023817,46.61944886,136.4,136.36,0.03]
[1745267024016,18.64964886,136.38,136.37,26.0]
[1745267025418,25.98210229,136.38,136.37,26.0]
[1745267025628,7.33245343,136.38,136.37,26.0]
[1745267026221,7.33245343,136.38,136.36,0.03]
[1745267026529,7.33245343,136.38,136.37,26.0]
[1745267028238,51.77154225,136.42,136.36,0.03]
[1745267028239,81.8,136.37,136.36,0.03]
[1745267028417,81.8,136.37,136.36,12.38559787]
[1745267029122,81.8,136.37,136.36,26.03]
[1745267029322,81.8,136.37,136.36,38.38559787]
[1745267030035,31.00524673,136.39,136.36,0.03]
[1745267030233,18.64964886,136.39,136.36,0.03]
[1745267030413,7.33245343,136.38,136.37,26.0]
[1745267030916,25.98182933,136.39,136.37,26.0]
[1745267034423,89.13245343,136.38,136.37,26.0]
[1745267036722,81.8,136.38,136.37,26.0]
[1745267037530,81.8,136.38,136.37,12.35559787]
[1745267037735,81.8,136.38,136.37,19.68858899]
[1745267038242,81.8,136.38,136.37,12.35559787]
[1745267039949,81.8,136.38,136.36,12.38559787]
[1745267040248,81.8,136.37,136.36,12.38559787]
[1745267041451,81.8,136.37,136.36,19.71912676]
[1745267042430,81.8,136.37,136.36,26.03]
[1745267042630,81.8,136.37,136.36,0.03]
[1745267046167,25.98156468,136.39,136.38,26.0]
[1745267048155,38.33716255,136.39,136.37,26.0]
[1745267049143,100.44964886,136.38,136.37,26.0]
[1745267050247,107.78210229,136.38,136.37,26.0]
[1745267055040,81.78263998,136.37,136.36,0.03]
[1745267056969,25.98263998,136.37,136.36,0.03]
[1745267058457,65.09599942,136.37,136.36,0.03]
[1745267059558,52.74040155,136.37,136.36,0.03]
[1745267059875,65.09599942,136.37,136.36,0.03]
[1745267063771,100.35964886,136.34,136.33,0.03]
[1745267063948,18.64964886,136.34,136.33,0.03]
[1745267064566,25.98425352,136.34,136.33,0.03]
[1745267065170,38.33985139,136.34,136.33,0.03]
[1745267065765,38.48201296,136.34,136.33,0.03]
[1745267065971,26.12641509,136.34,136.33,0.03]
[1745267066172,38.48201296,136.34,136.33,0.03]
[1745267066374,25.98425352,136.34,136.33,0.03]
[1745267068170,18.64964886,136.34,136.33,0.03]
[1745267068577,58.48201296,136.34,136.33,0.03]
[1745267069454,58.33985139,136.34,136.33,0.03]
[1745267072765,58.48201296,136.34,136.33,0.03]
[1745267072973,60.06911296,136.34,136.33,0.03]
[1745267075992,25.98425352,136.34,136.33,0.03]
[1745267076489,38.33985139,136.34,136.33,0.03]
[1745267080391,20.0,136.36,136.33,0.03]
[1745267080564,18.64964886,136.35,136.33,0.03]
[1745267084286,81.8,136.34,136.33,0.03]
[1745267085297,81.8,136.34,136.33,26.03]
[1745267085475,18.64964886,136.37,136.33,12.38559787]
[1745267087574,12.35559787,136.37,136.34,26.0]
[1745267088591,12.35559787,136.38,136.34,38.35559787]
[1745267089600,19.68809033,136.38,136.34,38.35559787]
[1745267089967,18.64964886,136.37,136.33,0.03]
[1745267090283,81.8,136.36,136.33,0.03]
[1745267090674,81.8,136.36,136.34,26.0]
[1745267091084,89.13370221,136.36,136.34,26.0]
[1745267091601,89.13370221,136.36,136.33,0.03]
[1745267096001,81.8,136.35,136.33,0.03]
[1745267096511,89.13406963,136.35,136.33,12.38559787]
[1745267097600,81.8,136.36,136.34,12.35559787]
[1745267097807,81.8,136.36,136.35,38.35559787]
[1745267099903,81.8,136.36,136.35,33.33406674]
[1745267100090,81.8,136.36,136.35,45.68966461]
[1745267100793,81.8,136.36,136.35,33.33406674]
[1745267101114,18.71264886,136.41,136.35,45.68966461]
[1745267101115,81.8,136.4,136.35,45.68966461]
[1745267101297,81.8,136.39,136.35,33.33406674]
[1745267101500,81.8,136.39,136.38,38.35559787]
[1745267102005,81.8,136.39,136.38,45.6880513]
[1745267105195,0.063,136.41,136.38,19.6880513]
[1745267105407,0.063,136.41,136.4,61.77798935]
[1745267106107,0.063,136.43,136.42,26.0]
[1745267106316,0.063,136.43,136.42,45.68590134]
[1745267107308,0.063,136.43,136.42,33.33030347]
[1745267107513,0.063,136.43,136.42,12.35559787]
[1745267108613,0.063,136.43,136.42,19.68590134]
[1745267108994,0.063,136.43,136.42,45.68590134]
[1745267109697,0.063,136.43,136.42,7.33030347]
[1745267109898,0.063,136.43,136.42,19.68590134]
[1745267110099,0.063,136.43,136.42,45.68590134]
[1745267110539,0.063,136.43,136.42,19.68590134]
[1745267110899,0.063,136.43,136.42,45.68590134]
[1745267111304,0.063,136.43,136.42,19.68590134]
[1745267111723,0.063,136.43,136.42,45.68590134]
[1745267112397,0.063,136.43,136.42,19.68590134]
[1745267112597,0.063,136.43,136.42,45.68590134]
[1745267113018,0.063,136.43,136.42,19.68590134]
[1745267113200,0.063,136.43,136.42,45.68590134]
[1745267113406,0.063,136.43,136.42,19.68590134]
[1745267113619,0.063,136.43,136.42,45.68590134]
[1745267113819,0.063,136.43,136.42,19.68590134]
[1745267114001,0.063,136.43,136.42,45.68590134]
[1745267114634,0.063,136.43,136.42,19.68590134]
[1745267114924,0.063,136.43,136.42,45.68590134]
[1745267115131,0.063,136.43,136.42,19.68590134]
[1745267115825,81.8,136.45,136.44,26.0]
[1745267116120,81.8,136.45,136.44,38.35559787]
[1745267116833,81.8,136.45,136.44,45.68482683]
[1745267126713,0.063,136.46,136.44,45.68482683]
[1745267126920,0.063,136.46,136.45,12.35559787]
[1745267127923,0.063,136.46,136.45,19.68428969]
[1745267130543,0.063,136.46,136.45,7.32869182]
[1745267130745,0.063,136.46,136.45,38.35559787]
[1745267131056,0.063,136.46,136.44,19.68458104]
[1745267131227,0.063,136.46,136.45,26.0]
[1745267132329,0.063,136.46,136.44,12.35559787]
[1745267132530,81.8,136.45,136.42,12.35559787]
[1745267132845,81.8,136.45,136.44,26.0]
[1745267133034,81.8,136.45,136.42,12.35559787]
[1745267133236,81.8,136.45,136.42,38.35559787]
[1745267133546,81.8,136.45,136.42,26.0]
[1745267134048,89.1289878,136.45,136.42,26.0]
[1745267134428,89.1289878,136.45,136.42,40.4324522]
[1745267137033,81.8,136.44,136.42,40.4324522]
[1745267137842,81.8,136.44,136.43,14.4324522]
[1745267140750,27.51257782,136.44,136.4,26.0]
[1745267141058,88.2433,136.43,136.41,14.4324522]
[1745267141244,88.2433,136.43,136.42,14.4324522]
[1745267142650,88.2433,136.43,136.42,40.4324522]
[1745267142858,81.8,136.43,136.42,40.4324522]
[1745267145862,1.5337,136.44,136.42,40.4324522]
[1745267146061,1.5337,136.44,136.43,14.4324522]
[1745267146561,26.04099433,136.46,136.43,14.4324522]
[1745267146756,0.063,136.46,136.45,14.4324522]
[1745267149039,0.063,136.48,136.47,26.0]
[1745267149249,0.063,136.48,136.47,40.4324522]
[1745267151149,0.063,136.48,136.47,47.76006999]
[1745267154070,0.063,136.48,136.43,57.7298088]
[1745267154260,81.8,136.47,136.45,14.4324522]
[1745267154565,81.8,136.47,136.45,40.4324522]
[1745267157568,81.8,136.46,136.45,40.4324522]
[1745267160858,81.8,136.46,136.45,26.0]
[1745267160859,89.12815477,136.46,136.45,26.0]
[1745267161060,107.77780363,136.46,136.43,14.4324522]
[1745267161262,81.8,136.45,136.43,40.4324522]
[1745267161460,81.8,136.44,136.43,40.4324522]
[1745267161863,81.8,136.44,136.43,26.0]
[1745267162075,25.97780363,136.46,136.43,26.0]
[1745267162391,7.7032,136.47,136.45,14.4324522]
[1745267162684,26.35284886,136.47,136.46,14.4324522]
[1745267163259,0.063,136.48,136.46,14.4324522]
[1745267163458,0.063,136.48,136.47,14.4324522]
[1745267165171,0.063,136.48,136.46,40.4324522]
[1745267167157,0.063,136.48,136.46,14.4324522]
[1745267174783,0.063,136.48,136.44,33.32906446]
[1745267175095,0.063,136.48,136.46,14.4324522]
[1745267175477,14.4954522,136.48,136.44,26.0]
[1745267175886,15.9928522,136.46,136.41,14.4324522]
[1745267176075,22.0163522,136.46,136.41,14.4324522]
[1745267176277,81.8,136.45,136.42,26.0]
[1745267176479,81.8,136.45,136.41,14.4324522]
[1745267176780,81.8,136.45,136.42,26.0]
[1745267176982,89.12876668,136.45,136.42,40.4324522]
[1745267177300,89.12876668,136.45,136.42,14.4324522]
[1745267177675,89.12876668,136.45,136.42,40.4324522]
[1745267177875,81.8,136.45,136.42,40.4324522]
[1745267178276,81.8,136.45,136.43,14.4324522]
[1745267178795,81.8,136.45,136.42,40.4324522]
[1745267181098,81.8,136.44,136.42,40.4324522]
[1745267183111,89.12925626,136.44,136.42,26.0]
[1745267186881,81.8,136.43,136.42,26.0]
[1745267187080,7.32925626,136.44,136.42,26.0]
[1745267190606,18.64964886,136.44,136.42,26.0]
[1745267193489,18.64964886,136.44,136.42,40.43220705]
[1745267195905,25.9788817,136.44,136.42,40.43220705]
[1745267196790,14.91231238,136.46,136.42,40.43220705]
[1745267197003,25.97753122,136.47,136.45,14.43220705]
[1745267198188,25.97753122,136.47,136.44,14.43220705]
[1745267199506,25.97753122,136.47,136.42,33.33016506]
[1745267199694,25.97753122,136.47,136.44,14.43220705]
[1745267202004,40.40973827,136.47,136.42,40.43220705]
[1745267202208,33.08185591,136.45,136.42,26.0]
[1745267203309,40.41101471,136.45,136.42,26.0]
[1745267203701,25.97880766,136.45,136.42,26.0]
[1745267204519,89.12924437,136.44,136.42,26.0]
[1745267204706,81.8,136.43,136.42,26.0]
[1745267205324,18.64964886,136.43,136.38,7.33245343]
[1745267205497,33.08185591,136.42,136.37,14.46220705]
[1745267206014,33.08185591,136.42,136.37,40.46220705]
[1745267206015,14.43220705,136.41,136.37,40.46220705]
[1745267206508,33.08185591,136.42,136.37,26.03]
[1745267206718,7.33084084,136.41,136.37,40.46220705]
[1745267208129,7.33084084,136.41,136.38,14.43220705]
[1745267210314,81.8,136.4,136.38,14.43220705]
[1745267210615,81.8,136.39,136.38,14.43220705]
[1745267216312,7.33105501,136.41,136.38,14.43220705]
[1745267217718,7.33105501,136.41,136.37,40.46220705]
[1745267219327,100.44964886,136.4,136.37,26.03]
[1745267219529,108.58334886,136.4,136.37,40.46220705]
[1745267219833,108.58334886,136.4,136.38,14.43220705]
[1745267221429,115.91517903,136.4,136.38,14.43220705]
[1745267221809,109.40577903,136.4,136.38,14.43220705]
[1745267225136,81.8,136.39,136.38,14.43220705]
[1745267227840,89.13191582,136.39,136.38,14.43220705]
[1745267228025,89.13191582,136.39,136.37,0.03]
[1745267228537,89.13191582,136.39,136.37,14.46220705]
[1745267230138,89.13191582,136.39,136.37,0.03]
[1745267230436,89.13191582,136.39,136.37,14.46220705]
[1745267231022,81.8,136.38,136.37,14.46220705]
[1745267236945,7.33191582,136.39,136.37,14.46220705]
[1745267237343,25.98156468,136.39,136.38,14.43220705]
[1745267238248,20.0,136.41,136.38,14.43220705]
[1745267238543,15.02,136.42,136.37,0.03]
[1745267238544,22.35057581,136.42,136.4,14.43220705]
[1745267241045,41.00022467,136.42,136.41,14.43220705]
[1745267243453,41.00022467,136.42,136.4,14.43220705]
[1745267245152,41.00022467,136.42,136.37,7.36294917]
[1745267245450,81.8,136.41,136.4,14.43220705]
[1745267245671,41.00022467,136.42,136.4,14.43220705]
[1745267250766,41.00022467,136.42,136.39,14.43220705]
[1745267251437,81.8,136.4,136.39,14.43220705]
[1745267253358,18.64964886,136.39,136.37,0.03]
[1745267253562,81.8,136.38,136.37,0.03]
[1745267254456,87.26653488,136.38,136.37,0.03]
[1745267255260,113.24863717,136.38,136.37,0.03]
[1745267255564,66.02300579,136.38,136.37,0.03]
[1745267260290,66.02300579,136.38,136.33,14.46220705]
[1745267260291,81.74,136.36,136.33,14.46220705]
[1745267260444,81.74,136.35,136.33,14.46220705]
[1745267260771,81.74,136.35,136.33,40.46220705]
[1745267261767,89.07448634,136.35,136.33,40.46220705]
[1745267262373,89.07448634,136.35,136.34,14.43220705]
[1745267263669,89.07448634,136.35,136.33,26.03]
[1745267263875,89.07448634,136.35,136.33,40.46220705]
[1745267264077,89.07448634,136.35,136.34,14.43220705]
[1745267265171,89.07448634,136.35,136.33,26.03]
[1745267265371,89.07448634,136.35,136.34,14.43220705]
[1745267266256,18.64964886,136.36,136.34,14.43220705]
[1745267267357,7.33406674,136.35,136.34,14.43220705]
[1745267268671,7.33299112,136.37,136.34,14.43220705]
[1745267268972,7.33299112,136.37,136.35,14.43220705]
[1745267270752,7.33264635,136.38,136.36,14.43220705]
[1745267270953,81.8,136.37,136.33,33.36513946]
[1745267271262,81.8,136.37,136.36,14.43220705]
[1745267271463,7.33219316,136.39,136.36,14.43220705]
[1745267271661,7.33219316,136.39,136.33,33.36513946]
[1745267271849,81.8,136.36,136.33,33.36513946]
[1745267272050,81.8,136.35,136.33,33.36513946]
[1745267272564,81.8,136.35,136.34,14.43220705]
[1745267272767,81.8,136.39,136.34,14.43220705]
[1745267272975,81.8,136.38,136.36,26.0]
[1745267273189,81.8,136.37,136.36,26.0]
[1745267274271,81.8,136.37,136.36,40.43220705]
[1745267274679,81.8,136.37,136.36,105.49456414]
[1745267281705,81.8,136.37,136.36,47.76573594]
[1745267287182,81.8,136.41,136.36,105.49456414]
[1745267287387,81.8,136.41,136.4,14.43220705]
[1745267287580,1.6053,136.42,136.4,14.43220705]
[1745267287780,20.25494886,136.42,136.41,14.43220705]
[1745267288673,6.6439,136.43,136.41,21.76278719]
[1745267288883,0.063,136.43,136.42,14.43220705]
[1745267292676,0.063,136.43,136.42,21.76251052]
[1745267292876,0.063,136.43,136.42,47.76251052]
[1745267293586,0.063,136.43,136.42,26.0]
[1745267294388,0.063,136.43,136.42,40.43220705]
[1745267298986,0.063,136.43,136.42,47.76251052]
[1745267306511,0.063,136.43,136.42,21.76251052]
[1745267308609,0.063,136.43,136.42,79.49133872]
[1745267308825,81.8,136.46,136.45,26.0]